fUST/lending_fUST_20251227
["ID","MTS","AMOUNT","RATE_DAILY","PERIOD"]
[399862445,1766766002540,-951.54849457,0.00015128,2]
[399862446,1766766002577,-951.54849457,0.00015128,2]
[399862447,1766766002615,-951.54849457,0.00015128,2]
[399862448,1766766005471,-606.0,0.00015127,2]
[399862449,1766766005508,-300.0,0.00015127,2]
[399862450,1766766005541,-638.0,0.00015127,2]
[399862451,1766766005579,-951.54849457,0.00015128,2]
[399862452,1766766005618,-925.77738951,0.00015128,2]
[399862453,1766766005655,-925.77738951,0.00015128,2]
[399862454,1766766005694,-380.02606331,0.00015128,2]
[399862455,1766766005834,-545.7513262,0.00015128,2]
[399862456,1766766005871,-925.77738951,0.00015128,2]
[399862457,1766766005911,-925.77738951,0.00015128,2]
[399862458,1766766006001,-1651.78176338,0.00015128,2]
[399862459,1766766009849,8016.77,0.00030137,120]
[399862460,1766766031604,200.0,0.00028367,120]
[399862461,1766766045432,-1364.45135692,0.00014969,2]
[399862462,1766766046439,7271.10728616,0.0001423,2]
[399862463,1766766046509,2442.04849514,0.0001423,2]
[399862464,1766766066016,500.0,0.00013273,2]
[399862465,1766766067939,500.0,0.00013273,2]
[399862467,1766766143713,526.0,0.00030136,120]
[399862468,1766766187213,500.0,0.00013273,2]
[399862469,1766766187977,500.0,0.00013273,2]
[399862470,1766766188265,500.0,0.00013273,2]
[399862472,1766766247498,494.945879,0.00013699,2]
[399862474,1766766331014,200.0,0.00027081,120]
[399862475,1766766351360,169.89585211,0.00026527,120]
[399862476,1766766353768,999.0,0.00014129,2]
[399862477,1766766390718,200.0,0.00028866,120]
[399862478,1766766409514,-300.0,0.00015093,2]
[399862479,1766766409593,-382.75648032,0.00015094,2]
[399862480,1766766409670,-1299.7029323,0.00015094,2]
[399862481,1766766415592,-1476.70497218,0.00015094,2]
[399862482,1766766418413,-1279.47070918,0.00015094,2]
[399862483,1766766418491,-7441.06858164,0.00015094,2]
[399862484,1766766431129,-300.0,0.00015127,2]
[399862485,1766766431154,-461.67526834,0.00015128,2]
[399862486,1766766431177,-23116.86307099,0.00015128,2]
[399862487,1766766431212,-500.0,0.00015129,2]
[399862488,1766766431238,-500.0,0.00015129,2]
[399862489,1766766431266,-500.0,0.00015129,2]
[399862490,1766766431291,-500.0,0.00015129,2]
[399862491,1766766431317,-500.0,0.00015129,2]
[399862492,1766766431344,-500.0,0.00015129,2]
[399862493,1766766431370,-500.0,0.00015129,2]
[399862494,1766766431395,-500.0,0.00015129,2]
[399862495,1766766431420,-500.0,0.00015129,2]
[399862496,1766766431444,-728.63017865,0.00015129,2]
[399862497,1766766431476,-728.63017865,0.00015129,2]
[399862498,1766766431501,-728.63017865,0.00015129,2]
[399862499,1766766431527,-728.63017865,0.00015129,2]
[399862500,1766766431555,-728.63017865,0.00015129,2]
[399862501,1766766431582,-728.63017865,0.00015129,2]
[399862502,1766766431609,-728.63017865,0.00015129,2]
[399862503,1766766431635,-728.63017865,0.00015129,2]
[399862504,1766766431660,-728.63017865,0.00015129,2]
[399862505,1766766431686,-728.63017865,0.00015129,2]
[399862506,1766766431712,-728.63017865,0.00015129,2]
[399862507,1766766431736,-758.43777687,0.00015129,2]
[399862508,1766766431762,-758.43777687,0.00015129,2]
[399862509,1766766431787,-758.43777687,0.00015129,2]
[399862510,1766766431812,-758.43777687,0.00015129,2]
[399862511,1766766431838,-758.43777687,0.00015129,2]
[399862512,1766766431864,-758.43777687,0.00015129,2]
[399862513,1766766431889,-769.81434352,0.00015129,2]
[399862514,1766766431916,-769.81434352,0.00015129,2]
[399862515,1766766431941,-769.81434352,0.00015129,2]
[399862516,1766766431971,-769.81434352,0.00015129,2]
[399862517,1766766432004,-769.81434352,0.00015129,2]
[399862518,1766766432042,-493.07070446,0.0001513,2]
[399862520,1766766450507,200.0,0.00025467,120]
[399862522,1766766512198,10000.01,0.00012,2]
[399862523,1766766512271,10000.01,0.00012,2]
[399862524,1766766512342,10000.01,0.00012,2]
[399862525,1766766512415,10000.01,0.00012,2]
[399862526,1766766512484,10000.01,0.00012,2]
[399862528,1766766613474,-631.0,0.00014737,2]
[399862529,1766766615109,500.0,0.00013273,2]
[399862530,1766766615201,550.0,0.00013821,2]
[399862531,1766766615641,500.0,0.00013273,2]
[399862532,1766766629392,-225.45909546,0.00014737,2]
[399862570,1766766632720,-1485.2364598,0.00015119,2]
[399862571,1766766632731,-126.65193172,0.00015128,2]
[399862572,1766766632743,-173.34806828,0.00015128,2]
[399862573,1766766632753,-274.46439064,0.00015229,2]
[399862574,1766766632766,-187.2108777,0.00015229,2]
[399862575,1766766632776,-150.0,0.00015258,2]
[399862576,1766766632786,-275.24518356,0.00015258,2]
[399862577,1766766632796,-1017.7937119,0.00015342,3]
[399862578,1766766632806,-150.0,0.00015395,2]
[399862579,1766766632816,-279.37181666,0.00015399,2]
[399862580,1766766632827,-500.0,0.00015399,2]
[399862581,1766766632838,-500.0,0.00015399,2]
[399862582,1766766632848,-331.69134267,0.00015399,2]
[399862583,1766766632858,-500.0,0.00015399,2]
[399862584,1766766632868,-500.0,0.00015399,2]
[399862585,1766766632878,-500.0,0.00015399,2]
[399862586,1766766632888,-500.0,0.00015399,2]
[399862587,1766766632898,-46751.62300915,0.000154,2]
[399862588,1766766632919,-500.0,0.00015399,2]
[399862589,1766766632929,-751.15385242,0.000154,2]
[399862590,1766766632939,-300.0,0.00015532,2]
[399862591,1766766632948,-300.0,0.00015532,2]
[399862592,1766766632958,-300.0,0.00015532,2]
[399862593,1766766632968,-300.0,0.00015532,2]
[399862594,1766766632978,-279.79823178,0.00015532,2]
[399862607,1766766638341,-500.0,0.00015399,2]
[399862608,1766766638351,-500.0,0.00015399,2]
[399862609,1766766638363,-500.0,0.00015399,2]
[399862610,1766766638375,-622.89259747,0.00015399,2]
[399862611,1766766638386,-500.0,0.00015399,2]
[399862612,1766766638397,-500.0,0.00015399,2]
[399862613,1766766638408,-500.0,0.00015399,2]
[399862614,1766766638418,-500.0,0.00015399,2]
[399862615,1766766638428,-486.83439881,0.00015399,2]
[399862616,1766766638438,-630.34987816,0.00015399,2]
[399862617,1766766638448,-500.0,0.00015399,2]
[399862618,1766766638458,-20.20176822,0.00015532,2]
[399862619,1766766638469,-300.0,0.00015532,2]
[399862620,1766766638479,-300.0,0.00015532,2]
[399862621,1766766638489,-300.0,0.00015532,2]
[399862622,1766766638499,-300.0,0.00015532,2]
[399862623,1766766638509,-300.0,0.00015532,2]
[399862624,1766766638519,-300.0,0.00015532,2]
[399862625,1766766638530,-300.0,0.00015532,2]
[399862626,1766766638540,-300.0,0.00015532,2]
[399862627,1766766638550,-300.0,0.00015532,2]
[399862628,1766766638560,-300.0,0.00015532,2]
[399862629,1766766638571,-600.0,0.00015532,2]
[399862630,1766766638581,-478.75725327,0.00015777,2]
[399862631,1766766638592,-168.0,0.00015823,2]
[399862632,1766766638603,-168.0,0.00015885,2]
[399862633,1766766638613,-500.0,0.00015936,2]
[399862634,1766766638623,-185.899509,0.00015939,2]
[399862635,1766766638639,-168.0,0.00015948,2]
[399862636,1766766638649,-168.0,0.00015998,2]
[399862637,1766766638660,-2000.0,0.00016013,2]
[399862638,1766766638670,-775.0,0.00016023,2]
[399862639,1766766638680,-437.35642461,0.00016066,2]
[399862640,1766766638690,-168.0,0.00016067,2]
[399862641,1766766638700,-500.0,0.00016073,2]
[399862642,1766766638710,-500.0,0.00016106,2]
[399862643,1766766638720,-301.546,0.00016199,2]
[399862644,1766766638730,-168.0,0.0001621,2]
[399862645,1766766638740,-298.79889081,0.0001621,2]
[399862646,1766766638750,-1041.66666667,0.00016212,2]
[399862647,1766766638759,-775.0,0.00016305,2]
[399862648,1766766638769,-496.47127164,0.00016325,2]
[399862649,1766766638781,-168.0,0.00016386,2]
[399862650,1766766638791,-775.0,0.00016407,2]
[399862651,1766766638802,-775.0,0.0001641,2]
[399862652,1766766638812,-775.0,0.00016437,2]
[399862653,1766766638822,-168.0,0.00016446,2]
[399862654,1766766638833,-787.2415643,0.00016508,2]
[399862655,1766766638843,-775.0,0.00016545,2]
[399862656,1766766638852,-420.0,0.00016554,2]
[399862657,1766766638862,-775.0,0.00016568,2]
[399862658,1766766638872,-168.0,0.0001657,2]
[399862659,1766766638882,-168.0,0.00016706,2]
[399862660,1766766638892,-775.0,0.00016711,2]
[399862661,1766766638902,-168.0,0.00016772,2]
[399862662,1766766638912,-150.0,0.00016811,2]
[399862663,1766766638923,-334.61911621,0.00016815,2]
[399862664,1766766638933,-284.654437,0.00016845,2]
[399862665,1766766638943,-168.0,0.00016852,2]
[399862666,1766766638953,-514.84070869,0.00016873,2]
[399862667,1766766638963,-250.0,0.00016888,2]
[399862668,1766766638973,-168.0,0.00016911,2]
[399862669,1766766638984,-150.0,0.00016948,2]
[399862670,1766766638994,-1399.54055876,0.00016949,2]
[399862671,1766766639005,-168.0,0.00016954,2]
[399862672,1766766639016,-168.0,0.00016975,2]
[399862673,1766766639026,-775.0,0.00017081,2]
[399862674,1766766639036,-150.0,0.00017085,2]
[399862675,1766766639047,-720.0,0.00017085,2]
[399862676,1766766639058,-451.65264678,0.00017094,2]
[399862677,1766766639068,-775.0,0.0001713,2]
[399862678,1766766639079,-1299.7029323,0.0001722,2]
[399862679,1766766639090,-150.0,0.00017222,2]
[399862680,1766766639101,-594.87842881,0.00017253,2]
[399862681,1766766639112,-150.0,0.00017359,2]
[399862682,1766766639122,-311.20821377,0.0001739,7]
[399862683,1766766639133,-2186.78212306,0.00017391,2]
[399862684,1766766639144,-1243.58802223,0.00017394,7]
[399862685,1766766639154,-365.99538327,0.00017401,2]
[399862686,1766766639165,-533.88981491,0.00017421,2]
[399862687,1766766639174,-500.0,0.00017476,7]
[399862688,1766766639185,-211.99,0.00017496,2]
[399862689,1766766639196,-929.49754502,0.0001769,2]
[399862690,1766766639206,-752.1007358,0.00017707,2]
[399862691,1766766639216,-376.0503679,0.00017707,2]
[399862692,1766766639227,-26665.92222168,0.0001775,2]
[399862693,1766766639242,-2521.307953,0.0001775,2]
[399862694,1766766639591,-5031.80437642,0.0001775,2]
[399862695,1766766639603,-4389.26336918,0.0001775,2]
[399862702,1766766640549,-440.45,0.0001775,2]
[399862706,1766766643616,189.82287538,0.00013179,2]
[399862710,1766766645726,-5000.0,0.00017604,2]
[399862711,1766766645736,-376.0503679,0.00017707,2]
[399862712,1766766645746,-64051.9112846,0.0001775,2]
[399862713,1766766645756,-2044.21309992,0.00017782,2]
[399862714,1766766645765,-282.41809994,0.000178,3]
[399862715,1766766645775,-732.02,0.00017807,2]
[399862716,1766766645785,-500.0,0.00017807,2]
[399862717,1766766645795,-732.02,0.00017819,2]
[399862718,1766766645804,-474.26302971,0.00017819,2]
[399862719,1766766645814,-553.64373807,0.00017969,2]
[399862720,1766766645824,-732.02,0.00017996,2]
[399862721,1766766645835,-250.0,0.00018,2]
[399862722,1766766645844,-96539.73446935,0.00018,2]
[399862723,1766766645854,-3000.0,0.00018,2]
[399862724,1766766645864,-732.02,0.00018081,2]
[399862725,1766766645874,-732.02,0.00018081,2]
[399862726,1766766645884,-732.02,0.00018081,2]
[399862727,1766766645894,-732.02,0.00018081,2]
[399862728,1766766645903,-732.13772052,0.00018081,2]
[399862729,1766766645914,-587.0,0.00018115,2]
[399862730,1766766645924,-300.0,0.00018162,2]
[399862731,1766766645934,-500.0,0.00018369,2]
[399862732,1766766645944,-598.7514956,0.00018438,2]
[399862733,1766766645959,-247.3190145,0.00018438,2]
[399862734,1766766645970,-2275.3127454,0.00018496,2]
[399862735,1766766645979,-574.12855637,0.00018517,2]
[399862736,1766766645989,-500.0,0.00018572,7]
[399862737,1766766646000,-376.0503679,0.00018666,2]
[399862738,1766766646010,-376.0503679,0.00018666,2]
[399862739,1766766646020,-375.9334429,0.00018667,2]
[399862740,1766766646030,-16569.2883313,0.00018738,2]
[399862741,1766766646040,-284.654437,0.00018973,2]
[399862742,1766766646050,-250.0,0.00019,2]
[399862744,1766766646060,-260.44580209,0.00019065,2]
[399862745,1766766646070,-1862.68900026,0.00019082,16]
[399862746,1766766646080,-520.54881324,0.00019094,2]
[399862747,1766766646090,-1808.2093343,0.00019178,2]
[399862748,1766766646100,-213.82,0.000192,2]
[399862749,1766766646110,-231.75,0.000192,2]
[399862750,1766766646121,-507.6908972,0.00019255,2]
[399862751,1766766646130,-4836.92,0.000193,2]
[399862752,1766766646139,-1299.7029323,0.00019346,2]
[399862753,1766766646148,-310.46483338,0.00019354,17]
[399862754,1766766646158,-150.0,0.00019434,2]
[399862755,1766766646168,-310.46483338,0.00019626,19]
[399862756,1766766646178,-376.0503679,0.00019645,2]
[399862757,1766766646187,-500.0,0.00019668,7]
[399862758,1766766646197,-1000.0,0.000198,2]
[399862759,1766766646207,-1000.0,0.000198,2]
[399862760,1766766646216,-1000.0,0.000198,2]
[399862761,1766766646226,-1000.0,0.000198,2]
[399862762,1766766646236,-1000.0,0.000198,2]
[399862763,1766766646245,-1000.0,0.000198,2]
[399862765,1766766646255,-1000.0,0.000198,2]
[399862766,1766766646267,-1000.0,0.000198,2]
[399862768,1766766646278,-1000.0,0.000198,2]
[399862769,1766766646287,-1000.0,0.000198,2]
[399862771,1766766646297,-516.759536,0.000198,2]
[399862772,1766766646307,-34041.9417274,0.000198,2]
[399862773,1766766646317,-823.0,0.00019824,2]
[399862774,1766766646327,-310.46483338,0.00019897,20]
[399862775,1766766646338,-3774.50392172,0.0002,5]
[399862776,1766766646352,-500.0,0.0002,2]
[399862777,1766766646362,-300.0,0.0002,2]
[399862778,1766766646371,-193.36973895,0.0002,2]
[399862779,1766766646381,-2535.72,0.0002,7]
[399862781,1766766646391,-150.0,0.0002,5]
[399862782,1766766646401,-150.0,0.0002,10]
[399862783,1766766646410,-151.51515152,0.0002,2]
[399862784,1766766646420,-660.58359671,0.00020157,7]
[399862785,1766766646430,-310.46483338,0.00020169,21]
[399862786,1766766646440,-494.945879,0.00020187,2]
[399862787,1766766646450,-310.46483338,0.0002044,23]
[399862788,1766766646460,-16569.2883313,0.00020444,2]
[399862789,1766766646470,-206.57119576,0.00020576,5]
[399862790,1766766646483,-228.09369462,0.00020586,2]
[399862791,1766766646494,-282.37,0.000207,3]
[399862792,1766766646504,-310.46483338,0.00020712,24]
[399862793,1766766646515,-500.0,0.00020764,7]
[399862794,1766766646524,-310.46483338,0.00020983,26]
[399862795,1766766646534,-500.0,0.00021,2]
[399862796,1766766646744,-3000.0,0.00021,2]
[399862797,1766766646756,-3000.0,0.0002101,2]
[399862798,1766766646766,-3000.0,0.0002102,2]
[399862799,1766766646776,-3000.0,0.0002103,2]
[399862800,1766766646786,-3000.0,0.0002104,2]
[399862801,1766766646796,-3000.0,0.0002105,2]
[399862802,1766766646806,-4154.999947,0.0002106,2]
[399862803,1766766646816,-589.44497969,0.00021093,2]
[399862804,1766766646827,-284.654437,0.00021101,2]
[399862805,1766766646839,-310.46483338,0.00021255,27]
[399862806,1766766646849,-213.82,0.000214,2]
[399862807,1766766646861,-231.75,0.000214,2]
[399862808,1766766646871,-1299.7029323,0.00021472,2]
[399862809,1766766646882,-1411.85,0.000215,3]
[399862810,1766766646891,-310.46483338,0.00021527,28]
[399862811,1766766646901,-1152.0,0.00021693,2]
[399862812,1766766646911,-165.76046166,0.000217,2]
[399862813,1766766646921,-36086.987821,0.00021775,2]
[399862814,1766766646931,-151.0,0.00021775,2]
[399862815,1766766646940,-151.0,0.00021775,2]
[399862816,1766766646950,-151.0,0.00021775,2]
[399862817,1766766646959,-151.0,0.00021775,2]
[399862818,1766766646969,-151.0,0.00021775,2]
[399862819,1766766646988,-151.0,0.00021775,2]
[399862820,1766766646999,-151.0,0.00021775,2]
[399862821,1766766647010,-258.429178,0.00021775,2]
[399862822,1766766647020,-258.429178,0.00021775,2]
[399862823,1766766647031,-258.429178,0.00021775,2]
[399862824,1766766647040,-258.429178,0.00021775,2]
[399862825,1766766647050,-310.46483338,0.00021798,30]
[399862826,1766766647060,-713653.82565002,0.000218,2]
[399862827,1766766647071,-25422.47,0.000218,2]
[399862828,1766766647083,-151.0,0.000218,2]
[399862829,1766766647093,-151.0,0.000218,2]
[399862830,1766766647103,-151.0,0.000218,2]
[399862831,1766766647113,-151.0,0.000218,2]
[399862832,1766766647123,-151.0,0.000218,2]
[399862833,1766766647133,-151.0,0.000218,2]
[399862834,1766766647143,-151.0,0.000218,2]
[399862835,1766766647153,-258.429178,0.000218,2]
[399862836,1766766647162,-258.429178,0.000218,2]
[399862837,1766766647172,-258.429178,0.000218,2]
[399862838,1766766647182,-258.429178,0.000218,2]
[399862839,1766766647192,-150.0,0.00021918,2]
[399862840,1766766647203,-500.0,0.00022,2]
[399862841,1766766647213,-1324.68,0.00022,7]
[399862842,1766766647223,-310.46483338,0.0002207,30]
[399862843,1766766647233,-4836.92,0.000221,14]
[399862844,1766766647243,-100000.0,0.0002215,10]
[399862845,1766766647253,-5000.0,0.00022252,2]
[399862846,1766766647263,-310.46483338,0.00022341,30]
[399862847,1766766647276,-300.0,0.00022466,2]
[399862848,1766766647286,-378.0,0.000225,8]
[399862849,1766766647296,-620.82966675,0.00022613,30]
[399862850,1766766647307,-5361.60736612,0.00022814,2]
[399862851,1766766647317,-151.0,0.00022814,2]
[399862852,1766766647326,-151.0,0.00022814,2]
[399862853,1766766647337,-151.0,0.00022814,2]
[399862854,1766766647348,-198.946705,0.00022814,2]
[399862855,1766766647358,-151.0,0.00022814,2]
[399862856,1766766647367,-151.0,0.00022814,2]
[399862857,1766766647377,-151.0,0.00022814,2]
[399862858,1766766647388,-258.429178,0.00022814,2]
[399862859,1766766647397,-258.429178,0.00022814,2]
[399862860,1766766647407,-258.429178,0.00022814,2]
[399862861,1766766647416,-258.429178,0.00022814,2]
[399862862,1766766647426,-500.0,0.00022956,7]
[399862863,1766766647435,-1089.69639255,0.00023,2]
[399862864,1766766647444,-213.82,0.00023,7]
[399862865,1766766647454,-231.75,0.00023,7]
[399862866,1766766647463,-450.0,0.00023014,2]
[399862867,1766766647472,-658.34114615,0.00023093,2]
[399862868,1766766647482,-1024.0,0.000231,2]
[399862869,1766766647492,-284.654437,0.00023229,2]
[399862870,1766766647503,-1324.68,0.000234,7]
[399862871,1766766647512,-1035273.13854684,0.000235,2]
[399862872,1766766647553,-300.0,0.00018162,2]
[399862873,1766766647563,-9977.12288328,0.000235,2]
[399862874,1766766647736,-892.8,0.000235,2]
[399862875,1766766647748,-3245.60112131,0.000235,2]
[399862876,1766766663085,-189.3288729,0.00014713,2]
[399862877,1766766677697,150.0,0.00011763,2]
[399862878,1766766678243,250.83,0.00012323,2]
[399862879,1766766678621,376.25,0.00012883,2]
[399862880,1766766679124,501.66,0.00013443,2]
[399862881,1766766679499,627.08,0.00014003,2]
[399862882,1766766688863,164.42,0.0001,2]
[399862883,1766766694498,-752.49,0.00014563,2]
[399862884,1766766755303,150.0,9.671e-05,2]
[399862885,1766766755687,183.17,0.00010132,2]
[399862886,1766766756095,274.75,0.00010592,2]
[399862887,1766766756511,366.33,0.00011053,2]
[399862888,1766766756928,457.91,0.00011514,2]
[399862889,1766766757332,549.5,0.00011974,2]
[399862890,1766766757726,641.08,0.00012435,2]
[399862891,1766766758191,732.66,0.00012895,2]
[399862892,1766766758637,824.24,0.00013356,2]
[399862893,1766766759080,915.83,0.00013816,2]
[399862895,1766766805739,-1753.48288335,0.00015023,2]
[399862896,1766766808650,-3506.9657667,0.00015023,2]
[399862897,1766766808683,-1642.44736684,0.00015023,2]
[399862898,1766766814839,-1343.63109976,0.00015023,2]
[399862899,1766766814872,-300.0,0.00015028,2]
[399862900,1766766814904,-300.0,0.00015028,2]
[399862901,1766766814936,-1200.0,0.00015028,2]
[399862902,1766766814968,-500.0,0.00015029,2]
[399862903,1766766815001,-500.0,0.00015029,2]
[399862904,1766766815036,-500.0,0.00015029,2]
[399862905,1766766815068,-354.70995892,0.00015029,2]
[399862906,1766766815354,-3.32788264,0.00015029,2]
[399862907,1766766825158,190.13705974,7.961e-05,2]
[399862908,1766766827411,190.13705974,0.0001433,2]
[399862909,1766766830916,150.0,9.411e-05,2]
[399862910,1766766831323,150.0,9.859e-05,2]
[399862911,1766766831778,150.0,0.00010307,2]
[399862912,1766766832217,150.0,0.00010756,2]
[399862913,1766766832658,150.0,0.00011204,2]
[399862914,1766766833204,160.39,0.00011652,2]
[399862918,1766766833615,187.12,0.000121,2]
[399862919,1766766834004,213.85,0.00012548,2]
[399862920,1766766834443,240.58,0.00012996,2]
[399862921,1766766834860,267.31,0.00013444,2]
[399862922,1766766839963,183.77,0.00012329,2]
[399862923,1766766850370,153.14,0.00012329,2]
[399862924,1766766859512,500.0,0.00013273,2]
[399862925,1766766859550,500.0,0.00013273,2]
[399862926,1766766860783,765.74,0.00012329,2]
[399862927,1766766869034,165.86,0.0001,2]
[399862928,1766766871435,165.86,0.000102,2]
[399862929,1766766900284,150.0,9.392e-05,2]
[399862930,1766766905441,167.0,0.00022054,120]
[399862931,1766766920041,172.950003,0.0001418,2]
[399862932,1766766933612,5043.16587752,0.00014068,2]
[399862933,1766766933636,857.07691288,0.00014068,2]
[399862934,1766766977552,500.0,0.00013273,2]
[399862935,1766766988459,1068.3246541,0.00014068,2]
[399862936,1766767023375,228.43620224,0.0001433,2]
[399862937,1766767025610,500.0,0.00013273,2]
[399862938,1766767049936,271.11,0.0001,2]
[399862939,1766767052392,271.11,0.000102,2]
[399862940,1766767055486,271.11,0.000104,2]
[399862941,1766767057933,271.11,0.000106,2]
[399862942,1766767060404,271.11,0.000108,2]
[399862943,1766767062904,271.11,0.00011,2]
[399862944,1766767069786,-5000.0,0.00014729,2]
[399862945,1766767079659,0.01,7.961e-05,2]
[399862946,1766767079681,299.83391697,7.961e-05,2]
[399862947,1766767080723,5000.0,0.00014729,2]
[399862948,1766767082331,299.84391697,0.00010698,2]
[399862949,1766767082775,299.84391697,0.00013436,2]
[399862950,1766767099892,204.3655648,0.00014027,2]
[399862951,1766767119333,-5000.0,0.00014802,2]
[399862952,1766767127076,0.01,0.00014802,2]
[399862953,1766767127101,2818.52200364,0.00014802,2]
[399862954,1766767129487,199.63983723,0.00013471,2]
[399862955,1766767129515,4003.8957135,0.00014027,2]
[399862956,1766767135294,188.53144618,7.961e-05,2]
[399862957,1766767135981,188.53144618,0.00013471,2]
[399862958,1766767152401,500.0,0.00013273,2]
[399862959,1766767152724,300.0,0.00013673,2]
[399862960,1766767159261,500.0,0.00013273,2]
[399862961,1766767160875,500.0,0.00013273,2]
[399862962,1766767161536,500.0,0.00013273,2]
[399862963,1766767162268,300.88955327,0.00013273,2]
[399862964,1766767162291,199.11044673,0.00013273,2]
[399862965,1766767162410,500.0,0.00013273,2]
[399862966,1766767162612,500.0,0.00013273,2]
[399862967,1766767173871,4520.39030833,0.00014802,2]
[399862968,1766767209396,261.02516085,0.00013273,2]
[399862969,1766767217044,500.0,0.00013273,2]
[399862970,1766767217765,500.0,0.00013273,2]
[399862971,1766767217799,500.0,0.00013273,2]
[399862972,1766767298339,965.2770871,0.00014024,2]
[399862973,1766767321086,772.0,0.00030137,120]
[399862974,1766767367810,-635.0,0.00014952,2]
[399862975,1766767367840,-397.984508,0.00014968,2]
[399862976,1766767367870,-216.0,0.00014983,2]
[399862977,1766767367899,-500.0,0.0001502,2]
[399862978,1766767367927,-388.69353178,0.0001502,2]
[399862979,1766767367956,-500.0,0.0001502,2]
[399862980,1766767367985,-500.0,0.0001502,2]
[399862981,1766767368013,-300.0,0.0001502,2]
[399862982,1766767368632,-500.0,0.0001502,2]
[399862983,1766767368918,-2836.02971227,0.00015021,2]
[399862984,1766767368968,-500.0,0.0001502,2]
[399862985,1766767368999,-9500.01,0.00015021,2]
[399862986,1766767369022,-500.0,0.00015021,2]
[399862987,1766767369040,-6418.54404277,0.00015021,2]
[399862988,1766767369050,-151.0,0.00015021,2]
[399862989,1766767369059,-151.0,0.00015021,2]
[399862990,1766767369068,-151.0,0.00015021,2]
[399862991,1766767369078,-151.0,0.00015021,2]
[399862992,1766767369088,-151.0,0.00015021,2]
[399862993,1766767369097,-151.0,0.00015021,2]
[399862994,1766767369106,-277.40798429,0.00015021,2]
[399862995,1766767369117,-300.0,0.00015025,2]
[399862996,1766767369127,-177.61630838,0.00015027,2]
[399862997,1766767369136,-500.0,0.00015029,2]
[399862998,1766767369145,-258.97547691,0.00015029,2]
[399862999,1766767369155,-161.46618765,0.00015029,2]
[399863000,1766767370707,-500.0,0.0001502,2]
[399863001,1766767370738,-338.53381235,0.00015029,2]
[399863002,1766767370768,-500.0,0.00015029,2]
[399863003,1766767370798,-500.0,0.00015029,2]
[399863004,1766767370827,-500.0,0.00015029,2]
[399863005,1766767370856,-600.62648909,0.00015029,2]
[399863006,1766767370886,-500.0,0.00015029,2]
[399863007,1766767370916,-500.0,0.00015029,2]
[399863008,1766767370945,-500.0,0.00015029,2]
[399863009,1766767370974,-500.0,0.00015029,2]
[399863010,1766767371128,-500.0,0.0001502,2]
[399863011,1766767371159,-500.0,0.0001502,2]
[399863012,1766767371191,-371.70325509,0.0001502,2]
[399863013,1766767371222,-500.0,0.0001502,2]
[399863014,1766767371259,-500.0,0.00015029,2]
[399863015,1766767371290,-500.0,0.00015029,2]
[399863016,1766767371320,-500.0,0.00015029,2]
[399863017,1766767371349,-500.0,0.00015029,2]
[399863018,1766767371379,-500.0,0.00015029,2]
[399863019,1766767371409,-256.54916746,0.00015029,2]
[399863020,1766767371439,-243.5051549,0.00015029,2]